bitfinex-derivatives/quotes_ETHF0:USTF0_20250327
["timestamp","ask_amount","ask_price","bid_price","bid_amount"]
[1743080871577,5.5321,2022.2,2022.1,1.3357]
[1743080873173,0.98895,2022.1,2022.0,0.00742556]
[1743080873377,3.58675,2022.1,2022.0,0.00742556]
[1743080874176,2.94125,2022.1,2022.0,0.99642556]
[1743080874374,2.29515,2022.1,2022.0,1.66702556]
[1743080876277,2.29515,2022.1,2022.0,0.67802556]
[1743080876786,2.29515,2022.1,2022.0,3.04112556]
[1743080876988,0.98895,2022.1,2022.0,3.04112556]
[1743080877579,0.98895,2022.1,2022.0,2.05212556]
[1743080877878,0.98895,2022.1,2022.0,3.04112556]
[1743080878079,2.32125,2022.1,2022.0,3.04112556]
[1743080878483,2.32125,2022.1,2022.0,2.05212556]
[1743080878785,2.32125,2022.1,2022.0,3.04112556]
[1743080879688,0.98895,2022.1,2022.0,3.04112556]
[1743080881792,0.98895,2022.1,2022.0,2.05212556]
[1743080882386,1.63625,2022.1,2022.0,1.38152556]
[1743080882689,2.34135,2022.1,2022.0,1.38152556]
[1743080883107,2.73993944,2022.1,2022.0,1.38152556]
[1743080883401,4.04863944,2022.1,2022.0,1.38152556]
[1743080884100,0.98909,2021.8,2021.7,0.6898]
[1743080884905,2.29779,2021.8,2021.7,2.0648]
[1743080885096,0.98909,2021.8,2021.7,3.05394]
[1743080885906,2.31349,2021.8,2021.7,3.05394]
[1743080886102,2.31349,2021.8,2021.7,2.0648]
[1743080886606,2.31349,2021.8,2021.7,3.05394]
[1743080887001,2.31349,2021.8,2021.7,2.0648]
[1743080888298,3.01579,2021.8,2021.7,2.0648]
[1743080889099,3.01579,2021.8,2021.7,1.375]
[1743080891002,2.88816171,2021.8,2021.1,3.2078]
[1743080891305,0.98944,2021.1,2021.0,1.3317]
[1743080891508,0.98944,2021.1,2021.0,0.6544]
[1743080892505,2.40534,2021.1,2021.0,0.6544]
[1743080892907,2.40534,2021.1,2021.0,1.9561]
[1743080893608,0.98953,2020.9,2020.8,0.71372556]
[1743080894895,2.33243,2020.9,2020.8,2.12452556]
[1743080896001,2.33243,2020.9,2020.8,1.41822556]
[1743080896603,2.33243,2020.9,2020.8,2.11262556]
[1743080897705,0.98953,2020.9,2020.8,2.11262556]
[1743080898700,0.98953,2020.9,2020.8,3.10220556]
[1743080899208,0.98953,2020.9,2020.8,2.11262556]
[1743080903705,2.40913,2020.9,2020.8,2.11262556]
[1743080907101,0.98953,2020.9,2020.8,2.11262556]
[1743080908110,2.33263,2020.9,2020.8,2.11262556]
[1743080910915,2.73125471,2020.9,2020.8,1.41822556]
[1743080911115,3.37765471,2020.9,2020.8,1.41822556]
[1743080911315,3.37765471,2020.9,2020.5,3.2078]
[1743080911316,7.33586471,2020.9,2020.5,3.2078]
[1743080911513,5.68191,2020.7,2020.4,1.358]
[1743080911819,0.98973,2020.5,2020.4,1.358]
[1743080914515,0.98973,2020.5,2020.4,2.7403]
[1743080915421,0.98973,2020.5,2020.4,3.73008]
[1743080916215,2.35881,2020.6,2020.5,0.98973]
[1743080916416,0.98971,2020.6,2020.5,2.30373]
[1743080916620,4.18062,2020.8,2020.7,0.98959]
[1743080916817,4.18062,2020.8,2020.7,41.78959]
[1743080917318,5.50482,2020.8,2020.7,42.49079]
[1743080918318,2.31382,2020.8,2020.7,42.49079]
[1743080921016,0.98962,2020.8,2020.7,42.49079]
[1743080922225,0.98962,2020.8,2020.7,1.69079]
[1743080923017,0.98962,2020.8,2020.7,2.98659]
[1743080923220,2.47412,2020.7,2020.4,1.65046]
[1743080923417,0.98973,2020.5,2020.4,0.6607]
[1743080924120,2.01917147,2020.6,2020.5,0.98973]
[1743080924321,4.17967,2020.7,2020.6,0.98968]
[1743080924924,5.52757,2020.7,2020.6,2.28548]
[1743080925226,2.33757,2020.7,2020.6,2.28548]
[1743080927430,2.33757,2020.7,2020.6,1.2958]
[1743080930029,0.98973,2020.5,2020.4,0.6607]
[1743080930232,0.98973,2020.5,2020.4,3.68138]
[1743080931130,0.98973,2020.5,2020.4,2.6916]
[1743080931330,0.98973,2020.5,2020.4,3.68138]
[1743080936633,0.98973,2020.5,2020.4,2.6916]
[1743080936836,0.98973,2020.5,2020.4,3.68138]
[1743080941434,0.98973,2020.5,2020.4,2.6916]
[1743080941829,0.98973,2020.5,2020.4,1.9877]
[1743080942031,2.35773,2020.5,2020.4,1.9877]
[1743080942229,0.98983,2020.3,2020.2,41.51122556]
[1743080942434,4.19763,2020.3,2020.2,0.00742556]
[1743080942625,7.38763,2020.3,2020.2,0.00742556]
[1743080942822,10.30020457,2020.3,2020.2,0.00742556]
[1743080943025,11.32997124,2020.3,2020.2,0.00742556]
[1743080944232,10.46639593,2020.3,2020.2,0.00742556]
[1743080944433,9.78539593,2020.3,2020.2,0.00742556]
[1743080944638,6.57759593,2020.3,2020.2,0.00742556]
[1743080944845,2.35783,2020.3,2020.2,3.11220556]
[1743080946935,0.98982,2020.4,2020.3,0.98978]
[1743080947238,2.33982,2020.4,2020.3,0.98978]
[1743080947541,0.98983,2020.3,2020.2,1.70796556]
[1743080949240,0.98983,2020.3,2020.2,0.00742556]
[1743080949433,8.68543,2020.3,2020.2,0.00742556]
[1743080949638,9.54806718,2020.3,2020.2,0.00742556]
[1743080949839,10.92162972,2020.3,2020.2,0.00742556]
[1743080950146,11.95040773,2020.3,2020.2,0.00742556]
[1743080958146,14.45040773,2020.3,2020.2,0.00742556]
[1743080958346,14.53152346,2020.3,2020.2,0.00742556]
[1743080958743,0.99002,2019.9,2019.8,40.8]
[1743080958958,0.99007,2019.8,2019.7,0.6947]
[1743080959148,2.36027,2019.8,2019.7,0.6947]
[1743080959344,2.36027,2019.8,2019.7,42.48482]
[1743080959551,0.99007,2019.8,2019.7,42.48482]
[1743080961050,0.99004,2019.9,2019.8,0.99007]
[1743080962150,0.99007,2019.8,2019.7,41.4947]
[1743080962351,0.99007,2019.8,2019.7,42.48482]
[1743080962945,0.99007,2019.8,2019.7,1.68482]
[1743080966758,0.99007,2019.8,2019.7,2.98932]
[1743080966959,2.31847,2019.9,2019.8,0.99007]
[1743080967255,0.99007,2019.9,2019.8,2.29457]
[1743080969348,0.99007,2019.9,2019.6,41.79017]
[1743080969349,0.99012,2019.7,2019.6,41.79017]
[1743080969554,0.99012,2019.7,2019.6,42.48417]
[1743080970562,0.99012,2019.7,2019.6,44.52617]
[1743080970764,0.99012,2019.7,2019.6,3.72617]
[1743080976066,0.99012,2019.7,2019.6,2.042]
[1743080976569,0.99012,2019.7,2019.6,3.03217]
[1743080977260,2.31132,2019.7,2019.6,3.03217]
[1743080978162,0.99012,2019.7,2019.6,3.03217]
[1743080979169,2.31132,2019.8,2019.7,0.99012]
[1743080979367,2.31132,2019.8,2019.7,2.38962]
[1743080979570,2.31132,2019.8,2019.7,3.08432]
[1743080982569,7.39587,2019.9,2019.8,0.99007]
[1743080982869,5.48597,2019.9,2019.8,2.31807]
[1743080985578,5.48597,2019.9,2019.8,1.328]
[1743080986074,0.99007,2019.8,2019.7,1.68482]
[1743080986275,3.40160684,2019.8,2019.7,2.0017]
[1743080986874,0.99012,2019.7,2019.6,0.7029]
[1743080987077,2.37092,2019.7,2019.6,2.0099]
[1743080987569,2.37092,2019.7,2019.6,3.00007]
[1743080987874,2.37092,2019.7,2019.6,2.0099]
[1743080988374,2.37092,2019.7,2019.6,0.7029]
[1743080988680,2.37092,2019.7,2019.6,1.307]
[1743080990077,2.37092,2019.7,2019.6,2.29717]
[1743080990877,2.37092,2019.7,2019.6,1.307]
[1743080991273,2.37092,2019.7,2019.6,2.29717]
[1743080991783,2.37092,2019.7,2019.6,1.307]
[1743080992476,2.37092,2019.7,2019.6,2.29717]
[1743080992871,2.37092,2019.7,2019.6,1.307]
[1743080994169,2.37092,2019.7,2019.6,2.29717]
[1743081002383,0.99011,2019.8,2019.7,0.99012]
[1743081002587,1.3954,2019.8,2019.7,0.99012]
[1743081002775,4.19786,2019.9,2019.8,0.99007]
[1743081003082,0.99012,2019.8,2019.7,0.99008]
[1743081003272,2.38552,2019.8,2019.7,2.30718]
[1743081008682,1.3954,2019.8,2019.7,2.30718]
[1743081009084,2.38547,2019.8,2019.7,2.30718]
[1743081009986,1.3954,2019.8,2019.7,2.30718]
[1743081010285,2.38547,2019.8,2019.7,2.30718]
[1743081012885,2.38547,2019.8,2019.7,1.3171]
[1743081013092,0.99017,2019.6,2019.5,0.69532556]
[1743081013293,0.99017,2019.6,2019.5,1.68553556]
[1743081014294,0.99017,2019.6,2019.5,2.97613556]
[1743081015486,0.99017,2019.6,2019.5,0.00742556]
[1743081015685,4.86547,2019.6,2019.5,0.00742556]
[1743081015886,7.13447575,2019.6,2019.5,0.00742556]
[1743081016380,8.1652681,2019.6,2019.5,0.00742556]
[1743081020188,8.1652681,2019.6,2019.0,1.4217]
[1743081020189,0.99052,2019.1,2019.0,1.4217]
[1743081020796,0.99061,2018.9,2018.8,1.67882]
[1743081021397,0.99061,2018.9,2018.8,0.6882]
[1743081021588,0.99061,2018.9,2018.8,1.67886]
[1743081022201,0.99061,2018.9,2018.8,3.10056]
[1743081022587,1.355,2019.0,2018.9,0.99061]
[1743081022588,2.34558,2019.0,2018.9,0.99061]
[1743081022801,2.34558,2019.0,2018.9,1.3503]
[1743081023698,2.34558,2019.0,2018.9,2.34091]
[1743081024092,2.34558,2019.0,2018.9,1.3503]
[1743081027497,2.34558,2019.0,2018.9,2.34091]
[1743081027702,0.99061,2018.9,2018.8,0.6882]
[1743081027900,2.35891,2018.9,2018.8,0.6882]
[1743081028203,3.02991,2018.9,2018.8,0.6882]
[1743081029198,3.02991,2018.9,2018.8,1.67886]
[1743081029399,3.02991,2018.9,2018.8,0.6882]
[1743081030104,3.02991,2018.9,2018.8,2.0384]
[1743081031708,3.02991,2018.9,2018.8,3.02906]
[1743081033901,6.22191,2018.9,2018.8,3.02906]
[1743081034601,5.55091,2018.9,2018.8,3.02906]
[1743081036903,1.3683,2018.9,2018.8,3.02906]
[1743081037402,4.18254,2019.1,2019.0,0.99056]
[1743081038106,4.18254,2019.1,2019.0,42.49866]
[1743081039208,3.192,2019.1,2019.0,42.49866]
[1743081039601,2.30342,2019.1,2019.0,42.49866]
[1743081039802,2.30342,2019.1,2019.0,1.69866]
[1743081040913,2.30342,2019.1,2019.0,3.08506]
[1743081041816,2.30342,2019.1,2019.0,2.0945]
[1743081042013,2.30342,2019.1,2019.0,2.37696]
[1743081042308,0.99061,2018.9,2018.8,2.32634]
[1743081042517,0.99061,2018.9,2018.8,1.67884]
[1743081043012,2.40511,2018.9,2018.8,1.67884]
[1743081046511,2.40511,2018.9,2018.8,0.6882]
[1743081046719,2.40511,2018.9,2018.8,1.67886]
[1743081050415,3.43567859,2018.9,2018.8,1.67886]
[1743081054014,1.03056859,2018.9,2018.8,1.67886]
[1743081054314,6.3998,2019.0,2018.9,0.99061]
[1743081054521,7.39036,2019.0,2018.9,2.40401]
[1743081054720,7.39036,2019.0,2018.9,3.06611]
[1743081056223,4.19836,2019.0,2018.9,3.06611]
[1743081057306,6.35712458,2019.0,2018.9,1.4134]
[1743081057512,0.99071,2018.7,2018.6,40.80495035]
[1743081057711,4.19851,2018.7,2018.6,1.39585035]
[1743081058217,5.49311,2018.7,2018.6,2.38661035]
[1743081058425,6.52361484,2018.7,2018.6,2.38661035]
[1743081058922,5.49311,2018.7,2018.6,2.38661035]
[1743081059112,5.49311,2018.7,2018.6,1.39585035]
[1743081059311,5.49311,2018.7,2018.6,2.38661035]
[1743081059517,5.49311,2018.7,2018.6,1.39585035]
[1743081059719,5.49311,2018.7,2018.6,0.00495035]
[1743081059918,6.90291,2018.7,2018.6,0.00495035]
[1743081060115,7.93292106,2018.7,2018.6,0.00495035]
[1743081060314,8.79683261,2018.7,2018.6,0.00495035]
[1743081061021,12.18022199,2018.7,2018.6,0.00495035]
[1743081061418,12.18022199,2018.7,2018.6,3.5e-07]
[1743081061632,12.26125844,2018.7,2018.6,3.5e-07]
[1743081062122,12.26125733,2018.7,2018.6,3.5e-07]
[1743081062518,11.37786795,2018.7,2018.6,3.5e-07]
[1743081063218,11.29683261,2018.7,2018.6,3.5e-07]
[1743081067426,8.79683261,2018.7,2018.6,3.5e-07]
[1743081070021,11.37786108,2018.7,2018.6,3.5e-07]
[1743081070527,0.99101,2018.1,2018.0,0.6729]
[1743081070828,4.18301,2018.1,2018.0,0.6729]
[1743081071028,4.18301,2018.1,2018.0,41.4729]
[1743081071914,5.60361,2018.1,2018.0,42.8197]
[1743081072524,5.60361,2018.1,2018.0,2.0197]
[1743081075832,5.60361,2018.1,2017.7,41.7912]
[1743081075833,0.99115,2017.8,2017.7,41.7912]
[1743081076023,7.39195,2017.8,2017.7,41.7912]
[1743081077229,7.39195,2017.8,2017.7,42.1492]
[1743081077830,7.39195,2017.8,2017.7,43.54]
[1743081078329,7.39195,2017.8,2017.7,44.5312]
[1743081079430,4.19895,2017.8,2017.7,44.5312]
[1743081080930,3.2078,2017.8,2017.7,44.5312]
[1743081081624,4.19895,2017.8,2017.7,44.5312]
[1743081085229,4.19895,2017.8,2017.7,3.7312]
[1743081085623,0.99115,2017.8,2017.7,3.7312]
[1743081086324,0.99115,2017.8,2017.7,2.74]
[1743081087425,0.99115,2017.8,2017.7,2.0539]
[1743081087632,0.9913,2017.5,2017.4,43.84841]
[1743081087928,4.1991,2017.5,2017.4,42.8571]
[1743081088125,4.1991,2017.5,2017.4,43.84845]
[1743081088325,5.5967,2017.5,2017.4,43.84845]
[1743081090333,5.5967,2017.5,2017.4,42.8571]
[1743081090525,5.5967,2017.5,2017.4,43.84845]
[1743081090722,4.6054,2017.5,2016.8,3.2078]
[1743081090919,0.9916,2016.9,2016.8,1.336]
[1743081091127,3.193,2016.9,2016.8,41.79165]
[1743081091322,4.18463,2016.9,2016.8,41.79165]
[1743081091523,3.193,2016.9,2016.8,41.79165]
[1743081091731,0.99158,2017.0,2016.9,0.9916]
[1743081091930,0.9916,2016.9,2016.8,40.8]
[1743081092522,0.9916,2016.9,2016.8,41.79165]
[1743081093132,2.42058,2017.0,2016.9,0.9916]
[1743081093338,0.9916,2016.9,2016.8,0.99162]
[1743081093727,0.99161,2016.9,2016.8,41.79161]
[1743081094335,2.42058,2017.0,2016.9,0.9916]
[1743081094825,0.9916,2016.9,2016.8,41.79161]
[1743081095835,2.42059,2017.0,2016.9,0.9916]
[1743081096033,7.39233,2017.1,2017.0,0.99155]
[1743081096233,3.194,2017.3,2016.9,2.47899]
[1743081096439,0.9914,2017.3,2017.2,0.99145]
[1743081096848,7.7947,2017.5,2017.1,3.83089]
[1743081097031,0.99137,2017.4,2017.3,0.99135]
[1743081097335,0.99143,2017.3,2017.2,0.99141]
[1743081097635,0.99145,2017.2,2017.1,2.34367]
[1743081097824,2.38435,2017.2,2017.1,2.34367]
[1743081098029,5.59215,2017.2,2017.1,1.3522]
[1743081098338,8.78615,2017.2,2017.1,1.3522]
[1743081100335,0.99155,2017.0,2016.9,0.99156]
[1743081100538,0.99155,2017.0,2016.9,2.35116]
[1743081103340,2.33001,2017.1,2017.0,0.99155]
[1743081104429,0.99151,2017.1,2017.0,0.99155]
[1743081104631,2.40705,2017.3,2017.2,0.99139]
[1743081108643,0.99141,2017.4,2017.3,0.99135]
[1743081108842,2.29551,2017.4,2017.3,0.99135]
[1743081109245,2.29551,2017.4,2017.3,3.06475]
[1743081112149,0.99865556,2017.7,2017.6,0.99125]
[1743081112344,4.20645556,2017.7,2017.6,0.99125]
[1743081112541,2.39185556,2017.7,2017.6,0.99125]
[1743081112844,0.99862556,2017.7,2017.6,0.99125]
[1743081115042,0.99125,2017.6,2017.5,2.31347]
[1743081115241,2.31165,2017.6,2017.5,2.3135]
[1743081116246,0.00742556,2017.7,2017.6,0.99125]
[1743081117050,2.31902556,2017.7,2017.6,0.99125]
[1743081118053,0.99125,2017.6,2017.5,2.31345]
[1743081118256,2.32985,2017.6,2017.5,2.31345]
[1743081119046,1.3386,2017.6,2017.5,2.31345]
[1743081119354,2.32985,2017.6,2017.5,2.31345]
[1743081121454,1.3386,2017.6,2017.5,2.31345]
[1743081122354,1.3386,2017.6,2017.5,2.99645]
[1743081123364,0.00742556,2017.7,2017.6,0.99125]
[1743081123659,0.00742556,2017.7,2017.6,2.30275]
[1743081124052,1.40392556,2017.7,2017.6,2.30275]
[1743081124649,2.39512556,2017.7,2017.6,2.30275]
[1743081125360,1.40392556,2017.7,2017.6,2.30275]
[1743081127667,2.39512556,2017.7,2017.6,2.30275]
[1743081127866,1.40392556,2017.7,2017.6,2.30275]
[1743081128069,2.39512556,2017.7,2017.6,2.30275]
[1743081128766,1.40392556,2017.7,2017.6,2.30275]
[1743081129867,0.00742556,2017.7,2017.6,2.30275]
[1743081131065,1.39612556,2017.7,2017.6,2.30275]
[1743081132260,3.2078,2018.3,2018.2,0.99089]
[1743081132472,0.99089,2018.4,2018.3,0.99091]
[1743081132675,0.99089,2018.4,2018.3,41.79091]
[1743081133172,8.05381,2018.6,2018.5,0.99081]
[1743081133472,3.21522556,2018.6,2018.5,0.99081]
[1743081133670,4.64012556,2018.6,2018.5,0.99081]
[1743081133866,5.63088556,2018.6,2018.5,0.99081]
[1743081134066,5.63088556,2018.6,2018.5,1.70501]
[1743081134382,0.99081,2018.5,2018.4,2.31853]
[1743081134576,2.41571,2018.5,2018.4,2.31853]
[1743081134874,1.4249,2018.5,2018.4,2.31853]
[1743081137077,0.00742556,2018.6,2018.5,0.99081]
[1743081137275,1.34642556,2018.6,2018.5,1.69821]
[1743081137965,4.55422556,2018.6,2018.3,40.8]
[1743081138272,0.99086,2018.4,2018.3,2.35037]
[1743081138877,2.41846,2018.4,2018.3,2.35037]
[1743081139279,0.99820556,2018.6,2018.3,1.3595]
[1743081139580,4.20600556,2018.6,2018.5,0.99081]
[1743081141283,0.99081,2018.5,2018.4,2.34541]
[1743081141483,2.41841,2018.5,2018.4,2.99611]
[1743081141682,1.4276,2018.5,2018.4,2.99611]
[1743081141981,2.41841,2018.5,2018.4,2.99611]
[1743081143088,1.4276,2018.5,2018.4,2.99611]
[1743081143476,2.41841,2018.5,2018.4,2.99611]
[1743081143780,1.4276,2018.5,2018.4,2.99611]
[1743081144279,0.99091,2018.3,2018.2,40.8]
[1743081144483,0.99123,2017.7,2017.6,0.99121]
[1743081144684,0.9913,2017.5,2017.4,3.05674]
[1743081144984,0.9913,2017.5,2017.4,43.85671]
[1743081145983,0.9913,2017.5,2017.4,42.8654]
[1743081146283,4.1991,2017.5,2017.4,40.8]
[1743081147075,5.6047,2017.5,2017.4,40.8]
[1743081148379,5.6047,2017.5,2017.4,41.79135]
[1743081148581,3.192,2018.0,2017.7,0.9912]
[1743081148780,4.18311,2018.0,2017.9,0.9911]
[1743081149287,0.9911,2017.9,2017.8,3.04642]
[1743081150177,2.322,2017.9,2017.8,0.6901]
[1743081150577,2.322,2017.9,2017.8,1.68125]
[1743081151992,2.322,2017.9,2017.8,2.98615]
[1743081152188,2.322,2017.9,2017.8,1.995]
[1743081152992,2.322,2017.9,2017.8,2.98615]
[1743081153784,2.322,2017.9,2017.8,1.995]
[1743081154187,2.322,2017.9,2017.8,2.98615]
[1743081154485,2.322,2017.9,2017.8,1.995]
[1743081155091,2.322,2017.9,2017.8,2.98615]
[1743081159504,0.99135,2017.5,2017.2,2.47852]
[1743081159812,0.99135,2017.5,2017.4,2.3544]
[1743081160511,0.99871556,2017.6,2017.5,0.9913]
[1743081160708,2.32701556,2017.6,2017.5,2.3399]
[1743081160904,1.33572556,2017.6,2017.5,2.3399]
[1743081161611,0.00742556,2017.6,2017.5,2.3399]
[1743081162414,0.00742556,2017.6,2017.5,43.1399]
[1743081163305,2.31945,2017.8,2017.7,0.9912]
[1743081163702,4.18414,2017.9,2017.8,0.99115]
[1743081164207,2.35604,2017.9,2017.8,0.99115]
[1743081164606,2.35604,2017.9,2017.8,3.02885]
[1743081164805,2.35604,2017.9,2017.8,2.0377]
[1743081165012,0.99115,2017.8,2017.7,40.8]
[1743081165206,2.35605,2017.8,2017.7,41.7912]
[1743081166605,1.3649,2017.8,2017.6,2.33065556]
[1743081166808,2.3066,2017.7,2017.6,2.33065556]
[1743081167312,2.3066,2017.7,2017.6,43.13065556]
[1743081167498,1.3154,2017.7,2017.6,43.13065556]
[1743081167702,2.3066,2017.7,2017.6,43.13065556]
[1743081167897,3.2078,2018.0,2017.6,42.13942556]
[1743081168205,1.3154,2017.8,2017.7,2.2912]
[1743081168609,2.30655,2017.8,2017.7,2.2912]
[1743081170815,2.30655,2017.8,2017.7,43.0912]
[1743081173317,0.99115,2017.9,2017.8,0.9911]
[1743081173613,2.42015,2017.9,2017.8,3.0243]
[1743081174410,2.42015,2017.9,2017.8,2.0332]
[1743081174917,2.42015,2017.9,2017.8,3.02435]
[1743081181318,0.9912,2017.7,2017.6,0.00742556]
[1743081181615,0.9914,2017.3,2017.2,1.4008]
[1743081181916,0.9914,2017.3,2017.2,2.1156]
[1743081182115,0.9914,2017.3,2017.2,42.9156]
[1743081182419,2.2953,2017.3,2017.2,43.90705]
[1743081182814,2.2953,2017.3,2017.2,42.9156]
[1743081183314,2.2953,2017.3,2017.2,41.5148]
[1743081183726,3.32380135,2017.3,2017.2,0.7148]
[1743081184313,0.9915,2017.1,2017.0,40.8]
[1743081184515,7.3913,2017.1,2017.0,40.8]
[1743081188717,7.3913,2017.1,2017.0,42.1402]
[1743081191919,3.2078,2017.1,2017.0,43.13175]
[1743081192125,4.1993,2017.1,2017.0,43.13175]
[1743081194025,4.1993,2017.1,2017.0,42.1402]
[1743081196121,4.1993,2017.1,2017.0,43.13175]
[1743081196318,3.2078,2017.1,2017.0,43.13175]
[1743081196523,4.1993,2017.1,2017.0,43.13175]
[1743081198730,4.1993,2017.1,2017.0,2.33175]
[1743081201529,3.2078,2017.1,2016.8,0.6552]
[1743081201830,0.9916,2016.9,2016.8,0.6552]
[1743081202034,0.9916,2016.9,2016.8,2.0126]
[1743081202328,1.2977,2016.9,2016.2,2.47975]
[1743081202531,4.1996,2016.6,2016.5,2.38117]
[1743081202733,4.19954,2016.6,2016.5,43.18117]
[1743081203031,4.18472,2016.7,2016.6,0.99174]
[1743081203234,3.2078,2016.9,2016.6,3.86866]
[1743081203436,2.1341,2016.9,2016.8,0.99165]
[1743081204132,2.1341,2016.9,2016.8,41.79165]
[1743081204333,2.1341,2016.9,2016.8,42.48815]
[1743081206537,3.1257,2016.9,2016.8,43.13775]
[1743081207028,2.1341,2016.9,2016.8,43.13775]
[1743081209331,3.1257,2016.9,2016.8,0.99165]
[1743081209537,4.48,2016.9,2016.8,0.99165]
[1743081210037,4.48,2016.9,2016.8,41.79165]
[1743081210929,3.1257,2016.9,2016.8,41.79165]
[1743081211941,2.1341,2016.9,2016.8,41.79165]
[1743081212138,2.48617556,2017.1,2016.8,41.79165]
[1743081212139,0.00742556,2017.1,2016.8,41.79165]
[1743081212440,0.99893556,2017.1,2017.0,0.99155]
[1743081212630,0.99893556,2017.1,2017.0,3.06155]
[1743081213136,0.00742556,2017.1,2017.0,3.06155]
[1743081213326,1e-08,2017.2,2017.1,0.9915]
[1743081213530,0.99134001,2017.5,2017.4,0.99135]
[1743081213735,1e-08,2017.5,2017.4,0.99135]
[1743081213931,4.19909,2017.6,2017.5,0.9913]
[1743081214135,4.19909,2017.6,2017.5,2.3916]
[1743081214433,4.19909,2017.6,2017.5,3.0995]
[1743081215041,4.19909,2017.6,2017.5,1.4003]
[1743081215247,0.9913,2017.5,2017.4,40.8]
[1743081215442,2.3223,2017.5,2017.4,40.8]
[1743081215649,0.99135,2017.4,2017.3,0.00742556]
[1743081215834,2.32235,2017.4,2017.3,0.00742556]
[1743081221847,2.32235,2017.4,2017.3,1.30682556]
[1743081228042,2.32235,2017.4,2017.3,0.00742556]
[1743081229046,2.32235,2017.4,2017.3,1.31742556]
[1743081229457,2.32235,2017.4,2017.3,0.00742556]
[1743081230751,2.32235,2017.4,2017.3,1.36752556]
[1743081231350,2.32235,2017.4,2017.3,0.00742556]
[1743081233551,3.18481217,2017.4,2017.3,0.00742556]
[1743081234049,4.1896134,2017.4,2017.3,0.00742556]
[1743081234552,0.99155,2017.0,2016.9,1.70445]
[1743081234742,0.99155,2017.0,2016.9,2.41035]
[1743081235754,0.99155,2017.0,2016.9,1.4188]
[1743081235949,0.99155,2017.0,2016.9,2.4104]
[1743081236143,0.99155,2017.0,2016.9,1.4188]
[1743081236445,0.9916,2016.9,2016.8,1.2902]
[1743081236650,5.6106,2016.9,2016.8,2.28185]
[1743081236852,5.6106,2016.9,2016.8,1.2902]
[1743081237055,2.4176,2016.9,2016.8,1.2902]
[1743081237350,5.6106,2016.9,2016.8,1.2902]
[1743081237947,7.8268,2016.9,2016.6,0.7059]
[1743081238154,0.99169,2016.7,2016.6,0.7059]
[1743081238456,0.99169,2016.7,2016.6,2.98784]
[1743081238755,2.41768,2016.8,2016.7,0.99169]
[1743081238944,2.41768,2016.8,2016.7,3.03189]
[1743081239648,0.99168,2016.8,2016.7,3.03189]
[1743081240152,4.19943,2016.9,2016.8,0.99165]
[1743081240345,4.19943,2016.9,2016.8,2.38205]
[1743081240939,4.19943,2016.9,2016.8,1.3904]
[1743081241544,0.99165,2016.8,2016.7,0.6498]
[1743081241744,5.51375,2016.8,2016.7,2.0063]
[1743081241952,5.51375,2016.8,2016.7,2.99799]
[1743081242353,5.51375,2016.8,2016.7,2.0063]
[1743081242749,0.99169,2016.7,2016.6,0.7059]
[1743081242946,2.32079,2016.7,2016.6,0.7059]
[1743081244041,2.32079,2016.7,2016.6,2.0624]
[1743081244445,5.51379,2016.7,2016.6,2.0624]
[1743081246352,0.99184,2016.4,2016.3,0.6876]
[1743081246652,4.18584,2016.4,2016.3,0.6876]
[1743081247253,5.55834,2016.4,2016.3,2.0496]
[1743081247450,0.99194,2016.2,2016.1,40.8]
[1743081247754,0.99194,2016.2,2016.1,41.4876]
[1743081247949,0.99194,2016.2,2016.1,42.47959]
[1743081248147,0.99194,2016.2,2016.1,41.4876]
[1743081248544,0.99194,2016.2,2016.1,42.47959]
[1743081248754,0.99194,2016.2,2016.1,42.8803]
[1743081249155,0.99214,2015.8,2015.7,3.2078]
[1743081249347,0.99212,2015.9,2015.8,0.99212]
[1743081249554,0.99201,2016.1,2016.0,0.99201]
[1743081249757,0.99204,2016.0,2015.9,1.67726]
[1743081249958,0.99204,2016.0,2015.9,1.67725]
[1743081250255,6.4078,2016.2,2015.9,1.67725]
[1743081250256,0.99202,2016.1,2016.0,0.99202]
[1743081250463,0.99204,2016.0,2015.9,42.47727]
[1743081251254,0.99204,2016.0,2015.9,43.14677]
[1743081252064,0.99204,2016.0,2015.9,42.1547]
[1743081252362,0.99204,2016.0,2015.9,43.14679]
[1743081252862,0.99204,2016.0,2015.9,42.1547]
[1743081253259,0.99204,2016.0,2015.9,43.14679]
[1743081253464,0.99204,2016.0,2015.9,44.50209]
[1743081254266,2.30212,2016.1,2016.0,0.99204]
[1743081254467,2.30212,2016.1,2016.0,2.31204]
[1743081255563,2.30212,2016.1,2016.0,1.32]
[1743081255766,2.30212,2016.1,2016.0,2.31204]
[1743081256068,2.30212,2016.1,2016.0,1.32]
[1743081256859,2.30212,2016.1,2016.0,2.31204]
[1743081257663,2.30212,2016.1,2016.0,1.32]
[1743081257867,2.30212,2016.1,2016.0,2.31204]
[1743081258373,0.99204,2016.0,2015.9,40.8]
[1743081258671,3.07564,2016.0,2015.9,41.79209]
[1743081258870,3.07564,2016.0,2015.9,40.8]
[1743081259273,3.07564,2016.0,2015.9,42.1523]
[1743081260572,3.07564,2016.0,2015.9,43.14439]
[1743081262068,2.38984,2016.0,2015.9,43.14439]
[1743081263765,2.38984,2016.0,2015.9,42.1523]
[1743081263966,2.38984,2016.0,2015.9,43.14439]
[1743081264366,2.38984,2016.0,2015.9,42.1523]
[1743081264876,2.38984,2016.0,2015.9,2.34439]
[1743081265975,2.38984,2016.0,2015.9,1.3523]
[1743081267671,3.2078,2016.2,2015.9,1.3523]
[1743081267873,4.18689,2016.4,2016.3,0.99184]